bitfinex/quotes_ETHUSD_20250810
["timestamp","ask_amount","ask_price","bid_price","bid_amount"]
[1754833035473,2.39017161,4183.8,4183.7,0.001]
[1754833035803,39.10817161,4183.8,4183.7,0.001]
[1754833036107,40.07247406,4183.8,4183.7,0.001]
[1754833036305,41.47781948,4183.8,4183.7,0.001]
[1754833037499,41.02371948,4183.8,4183.7,0.001]
[1754833037692,41.45751948,4183.8,4183.7,0.001]
[1754833038088,41.92851948,4183.8,4183.7,0.001]
[1754833039573,41.45751948,4183.8,4183.7,0.001]
[1754833040402,37.73951948,4183.8,4183.7,0.001]
[1754833040596,38.24254542,4183.8,4183.7,0.001]
[1754833040794,9.32311061,4183.8,4183.7,0.4556]
[1754833041030,3.932939,4183.8,4183.7,0.9105]
[1754833041395,3.932939,4183.8,4183.7,0.4556]
[1754833041597,36.75691061,4183.8,4183.7,0.001]
[1754833041817,40.22791061,4183.8,4183.7,0.001]
[1754833042018,42.54495129,4183.8,4183.7,0.001]
[1754833042806,41.97821229,4183.8,4183.7,0.001]
[1754833043100,11.54441229,4183.8,4183.7,0.001]
[1754833043529,11.64015229,4183.8,4183.7,0.001]
[1754833044135,41.64015229,4183.8,4183.7,0.001]
[1754833044446,43.05412546,4183.8,4183.7,0.001]
[1754833045547,42.58312546,4183.8,4183.7,0.001]
[1754833046947,6.28538083,4183.7,4183.6,0.001]
[1754833047249,40.65417566,4183.7,4183.6,0.001]
[1754833047438,40.65417566,4183.7,4183.6,1e-08]
[1754833047635,40.23751147,4183.7,4183.6,1e-08]
[1754833048518,41.09355503,4183.7,4183.6,1e-08]
[1754833049152,39.33271147,4183.7,4183.6,1e-08]
[1754833049336,43.46168354,4183.7,4183.6,1e-08]
[1754833049540,42.60364259,4183.7,4183.6,1e-08]
[1754833049834,43.03744259,4183.7,4183.6,1e-08]
[1754833050346,42.60364259,4183.7,4183.6,1e-08]
[1754833051052,43.03744259,4183.7,4183.6,1e-08]
[1754833051350,44.36644448,4183.7,4183.6,1e-08]
[1754833051518,43.72952032,4183.7,4183.6,1e-08]
[1754833052048,5.94034301,4183.5,4183.4,1e-08]
[1754833052235,10.38859391,4183.5,4183.4,1e-08]
[1754833052423,41.29339391,4183.5,4183.4,1e-08]
[1754833053154,40.38859391,4183.5,4183.4,1e-08]
[1754833053541,36.12059391,4183.5,4183.4,1e-08]
[1754833053749,41.93455686,4183.5,4183.4,1e-08]
[1754833054352,42.36835686,4183.5,4183.4,1e-08]
[1754833054700,43.226764,4183.5,4183.4,1e-08]
[1754833055157,43.776764,4183.5,4183.4,1e-08]
[1754833055450,43.61062789,4183.5,4183.4,1e-08]
[1754833056249,43.23538289,4183.5,4183.4,1e-08]
[1754833057947,42.80158289,4183.5,4183.4,1e-08]
[1754833058178,3.53692421,4183.5,4183.4,0.45460001]
[1754833058501,3.8362,4183.5,4183.4,0.90950001]
[1754833058668,0.1192,4183.5,4183.4,0.90950001]
[1754833059000,36.22654301,4183.5,4183.4,1e-08]
[1754833059202,42.0536742,4183.5,4183.4,1e-08]
[1754833059569,38.3366742,4183.5,4183.4,0.45460001]
[1754833059775,42.0546742,4183.5,4183.4,0.45460001]
[1754833060083,38.3366742,4183.5,4183.4,0.90950001]
[1754833060280,6.01963352,4183.5,4183.4,0.90950001]
[1754833060603,6.8362,4183.5,4183.4,0.90950001]
[1754833060903,9.22654301,4183.5,4183.4,0.90950001]
[1754833061394,9.73706767,4183.5,4183.4,0.90950001]
[1754833062305,9.73706767,4183.5,4183.4,1e-08]
[1754833062306,39.95860039,4183.5,4183.4,1e-08]
[1754833062605,42.27564107,4183.5,4183.4,1e-08]
[1754833063772,42.2756651,4183.5,4183.4,1e-08]
[1754833065461,42.7094651,4183.5,4183.4,1e-08]
[1754833067229,43.56550866,4183.5,4183.4,1e-08]
[1754833067880,49.43945424,4183.5,4183.4,1e-08]
[1754833068085,48.87270866,4183.5,4183.4,1e-08]
[1754833069211,48.0166651,4183.5,4183.4,1e-08]
[1754833069919,48.87270866,4183.5,4183.4,1e-08]
[1754833071017,48.99255934,4183.5,4183.4,1e-08]
[1754833071205,48.26950345,4183.5,4183.4,1e-08]
[1754833071540,48.73300345,4183.5,4183.4,1e-08]
[1754833072156,5.94040015,4183.4,4183.3,1e-08]
[1754833072306,39.97366533,4183.4,4183.3,1e-08]
[1754833072502,40.43716533,4183.4,4183.3,1e-08]
[1754833074063,40.43734596,4183.4,4183.3,1e-08]
[1754833075252,39.58619054,4183.4,4183.3,1e-08]
[1754833075449,39.93136976,4183.4,4183.3,1e-08]
[1754833076539,39.93136976,4183.4,4182.9,0.001]
[1754833076540,2.39062873,4183.0,4182.9,1e-08]
[1754833076707,5.94091452,4182.5,4182.4,0.001]
[1754833076919,40.39017656,4182.5,4182.4,0.001]
[1754833077124,41.37447263,4182.5,4182.4,1e-08]
[1754833077346,44.52121174,4182.5,4182.4,1e-08]
[1754833077664,43.80286074,4182.5,4182.4,1e-08]
[1754833077814,43.30366074,4182.5,4182.4,1e-08]
[1754833078462,42.15721724,4182.5,4182.4,1e-08]
[1754833078643,43.00762483,4182.5,4182.4,1e-08]
[1754833078846,42.62071724,4182.5,4182.4,1e-08]
[1754833079156,42.15721724,4182.5,4182.4,1e-08]
[1754833079361,38.44021724,4182.5,4182.4,1e-08]
[1754833079669,39.07788501,4182.5,4182.4,0.48690001]
[1754833079962,3.0,4182.4,4181.8,0.4869]
[1754833080134,3.1192,4182.2,4181.8,0.4869]
[1754833080459,3.1192,4181.9,4181.8,0.4869]
[1754833080663,3.1192,4181.9,4181.0,2.51096281]
[1754833080664,17.34690529,4181.9,4181.0,2.51096281]
[1754833080828,3.0,4181.7,4181.0,0.1192]
[1754833081053,3.0,4181.5,4181.0,0.1192]
[1754833081250,3.717,4181.4,4181.2,2.39164668]
[1754833081443,3.717,4181.3,4181.2,2.39164668]
[1754833082254,0.1192,4181.6,4181.2,0.9328]
[1754833082460,3.0,4181.4,4181.3,3.32440069]
[1754833082767,0.63767592,4182.6,4181.3,1.51633696]
[1754833082971,0.85040759,4182.9,4181.7,0.1192]
[1754833082972,0.1192,4182.3,4181.7,0.1192]
[1754833083133,2.3912026,4182.0,4181.8,0.9328]
[1754833083336,2.3912026,4182.0,4181.2,2.5108239]
[1754833083337,3.0,4181.8,4181.2,2.5108239]
[1754833083534,3.717,4181.7,4181.3,2.39160069]
[1754833083769,3.717,4181.7,4181.2,0.1192]
[1754833083770,3.717,4181.7,4181.4,0.9328]
[1754833084074,3.717,4181.7,4181.5,0.9328]
[1754833084276,3.717,4181.7,4181.2,0.1192]
[1754833084439,3.717,4181.7,4181.3,0.9328]
[1754833084812,0.1192,4181.9,4181.5,2.39144689]
[1754833084943,0.1192,4181.9,4181.6,0.9328]
[1754833085136,0.1192,4181.9,4181.8,2.39131474]
[1754833085475,3.717,4181.9,4181.8,2.39131474]
[1754833085634,3.717,4181.9,4181.8,1.052]
[1754833085839,3.8362,4181.9,4181.8,0.9328]
[1754833086643,3.8362,4181.9,4181.8,3.32411474]
[1754833086644,0.1192,4181.9,4181.8,3.32411474]
[1754833086843,3.717,4181.9,4181.8,3.89566877]
[1754833087351,0.1192,4182.3,4181.8,1.50435403]
[1754833087547,6.717,4182.2,4182.1,0.1192]
[1754833087987,6.717,4182.2,4182.1,0.5651]
[1754833088375,6.717,4182.2,4182.1,3.4431432]
[1754833089006,6.717,4182.2,4182.1,0.4869]
[1754833089172,6.717,4182.2,4181.8,3.44330365]
[1754833089487,6.717,4182.2,4181.9,3.32405053]
[1754833089833,6.717,4182.2,4181.9,2.39125053]
[1754833090104,6.717,4182.2,4182.0,0.9328]
[1754833090401,6.717,4182.2,4182.1,0.4869]
[1754833090751,6.717,4182.2,4181.7,0.4869]
[1754833090988,6.717,4182.2,4181.6,2.39137922]
[1754833091169,6.717,4182.2,4181.6,0.4869]
[1754833091788,6.717,4182.2,4181.9,2.39120642]
[1754833091988,6.717,4182.2,4181.6,0.6061]
[1754833091989,6.717,4182.2,4181.6,0.1192]
[1754833092186,6.717,4182.2,4182.0,0.9328]
[1754833092355,3.716,4182.1,4182.0,0.4459]
[1754833092558,3.716,4182.1,4181.6,0.1192]
[1754833092559,3.716,4182.1,4181.6,2.95651569]
[1754833092787,3.0,4182.0,4181.4,2.39150418]
[1754833092974,3.0,4181.8,4181.4,0.6061]
[1754833093157,3.0,4181.6,4181.4,0.6061]
[1754833093358,3.716,4181.5,4181.4,0.6061]
[1754833093572,3.716,4181.5,4181.4,2.9976435]
[1754833094281,3.716,4181.5,4181.4,1.052]
[1754833094795,3.716,4181.5,4181.4,3.4435435]
[1754833094959,3.716,4181.5,4181.4,4.02706249]
[1754833095161,3.716,4181.5,4181.4,3.4435435]
[1754833095476,3.716,4181.5,4181.4,1.052]
[1754833096102,3.716,4181.5,4181.4,0.6061]
[1754833096277,3.716,4181.5,4181.4,1.052]
[1754833096480,3.716,4181.5,4181.4,0.1192]
[1754833096673,3.716,4181.5,4181.4,1.052]
[1754833096874,3.716,4181.5,4181.4,0.1192]
[1754833097072,9.1074863,4181.5,4181.4,0.1192]
[1754833097301,9.9425863,4181.5,4181.4,0.1192]
[1754833097459,40.4118863,4181.5,4181.4,0.1192]
[1754833097665,2.39171509,4181.1,4181.0,0.001]
[1754833097858,9.22691509,4181.1,4181.0,0.001]
[1754833098072,6.8352,4181.1,4181.0,0.001]
[1754833098801,9.22691509,4181.1,4181.0,0.001]
[1754833099287,7.80212151,4181.1,4181.0,0.001]
[1754833099481,10.1938366,4181.1,4181.0,0.001]
[1754833099957,7.80212151,4181.1,4181.0,0.001]
[1754833100400,3.1192,4181.1,4181.0,0.001]
[1754833100600,6.8342,4181.1,4181.0,0.001]
[1754833101222,6.716,4181.1,4181.0,0.001]
[1754833101434,3.0,4181.1,4181.0,0.9031]
[1754833101818,6.716,4181.1,4181.0,0.458]
[1754833102336,6.716,4181.1,4181.0,0.001]
[1754833102541,3.0,4181.1,4181.0,0.001]
[1754833102741,10.51037447,4182.2,4181.0,0.9031]
[1754833102925,2.39171509,4181.1,4181.0,0.001]
[1754833103127,9.10671509,4181.1,4181.0,0.001]
[1754833103516,40.01831509,4181.1,4181.0,0.001]
[1754833104127,40.52853996,4181.1,4181.0,0.001]
[1754833104320,42.84558064,4181.1,4181.0,0.001]
[1754833105821,42.37628064,4181.1,4181.0,0.001]
[1754833106048,38.21898064,4181.1,4181.0,0.001]
[1754833106257,42.84558064,4181.1,4181.0,0.001]
[1754833107552,39.13058064,4181.1,4181.0,0.001]
[1754833107747,42.84658064,4181.1,4181.0,0.001]
[1754833108058,43.39658064,4181.1,4181.0,0.001]
[1754833108623,44.03425656,4181.1,4181.0,0.001]
[1754833109257,43.39658064,4181.1,4181.0,0.001]
[1754833111328,43.51578064,4181.1,4181.0,0.001]
[1754833111756,43.6995374,4181.1,4181.0,0.001]
[1754833112053,43.81839212,4181.1,4181.0,0.001]
[1754833113076,42.90679212,4181.1,4181.0,0.001]
[1754833113275,43.34909212,4181.1,4181.0,0.001]
[1754833113443,39.63309212,4181.1,4181.0,0.001]
[1754833113640,43.34909212,4181.1,4181.0,0.001]
[1754833114044,43.81839212,4181.1,4181.0,0.001]
[1754833114668,43.34909212,4181.1,4181.0,0.001]
[1754833115159,39.63309212,4181.1,4181.0,0.001]
[1754833115343,43.34909212,4181.1,4181.0,0.001]
[1754833116130,43.81839212,4181.1,4181.0,0.001]
[1754833116534,40.10239212,4181.1,4181.0,0.001]
[1754833116729,43.81839212,4181.1,4181.0,0.001]
[1754833120765,43.34909212,4181.1,4181.0,0.001]
[1754833120961,43.69427134,4181.1,4181.0,0.001]
[1754833121259,44.33194726,4181.1,4181.0,0.001]
[1754833121979,43.69427134,4181.1,4181.0,0.001]
[1754833122176,38.64079212,4181.1,4181.0,0.001]
[1754833122412,42.35579212,4181.1,4181.0,0.9031]
[1754833122579,42.35579212,4181.1,4181.0,0.458]
[1754833122972,42.35579212,4181.1,4181.0,0.001]
[1754833124345,48.10079212,4181.1,4181.0,0.001]
[1754833125886,48.54309212,4181.1,4181.0,0.001]
[1754833126187,49.18076804,4181.1,4181.0,0.001]
[1754833126388,48.73846804,4181.1,4181.0,0.001]
[1754833126587,48.10079212,4181.1,4181.0,0.001]
[1754833126950,44.38579212,4181.1,4181.0,0.001]
[1754833127156,0.69398163,4181.1,4181.0,3.2948723]
[1754833127356,3.215,4181.1,4181.0,3.2948723]
[1754833127576,3.215,4181.1,4181.0,0.9031]
[1754833127997,3.215,4181.1,4181.0,3.2948723]
[1754833128156,0.1192,4181.4,4181.1,2.39166668]
[1754833128356,0.1192,4181.4,4181.3,2.39160069]
[1754833128558,3.8332,4181.4,4181.3,2.39160069]
[1754833128902,3.714,4181.4,4181.3,1.53135158]
[1754833129385,3.0,4181.3,4181.0,2.39276074]
[1754833129587,0.29449711,4181.6,4181.1,0.4986]
[1754833129766,3.0,4181.4,4181.2,2.89025365]
[1754833129964,0.29449711,4181.6,4181.3,0.9572]
[1754833130284,6.714,4181.5,4181.4,2.39149655]
[1754833130474,3.0,4181.5,4181.4,2.39149655]
[1754833130675,5.745,4181.9,4181.5,2.3914863]
[1754833130865,3.714,4181.8,4181.7,2.3913201]
[1754833131188,3.0,4181.8,4181.7,2.3913201]
[1754833131389,6.714,4181.8,4181.7,2.3913201]
[1754833131695,6.714,4181.8,4181.7,3.3485201]
[1754833132260,6.714,4181.8,4181.7,0.4586]
[1754833133070,10.0,4181.7,4181.1,0.4586]
[1754833133260,13.8332,4181.6,4181.1,0.4586]
[1754833133591,3.8332,4181.6,4181.1,2.85031341]
[1754833133802,3.8332,4181.6,4181.3,2.39159555]
[1754833133970,3.713,4181.5,4181.4,2.3915435]
[1754833134690,0.1192,4181.6,4181.5,2.3914863]
[1754833134900,3.0,4181.8,4181.6,2.39142911]
[1754833135073,3.713,4181.7,4181.4,2.8900977]
[1754833135383,3.713,4181.7,4181.5,2.89008521]
[1754833135577,3.0,4181.8,4181.6,0.4986]
[1754833135900,3.0,4181.8,4181.7,3.34857193]
[1754833136103,6.713,4181.8,4181.7,0.9572]
[1754833137304,6.713,4181.8,4181.7,2.84997193]
[1754833137508,3.0,4181.8,4181.7,2.84997193]
[1754833137679,5.745,4181.9,4181.8,2.39131474]
[1754833137883,9.458,4181.9,4181.8,3.34851474]
[1754833138379,5.745,4181.9,4181.8,3.34851474]
[1754833138584,9.458,4181.9,4181.8,3.34851474]
[1754833138796,9.458,4181.9,4181.8,3.98683795]
[1754833139482,5.745,4181.9,4181.8,3.98683795]
[1754833139672,9.458,4181.9,4181.8,3.98683795]
[1754833139874,5.745,4181.9,4181.8,3.98683795]
[1754833140111,9.457,4181.9,4181.8,3.98683795]
[1754833140314,0.002,4182.4,4181.9,2.39125756]
[1754833140474,0.002,4182.4,4182.3,2.39102885]
[1754833140673,3.714,4182.4,4182.3,2.51022885]
[1754833140871,0.002,4182.4,4182.3,3.46742885]
[1754833141168,3.714,4182.4,4182.3,3.46742885]
[1754833141370,3.714,4182.4,4182.3,4.09958362]
[1754833141580,3.714,4182.4,4182.0,0.46301262]
[1754833141886,0.002,4182.4,4182.3,2.39102885]
[1754833142070,0.002,4182.4,4182.3,3.34822885]
[1754833142271,3.714,4182.4,4182.3,3.34822885]
[1754833142698,3.713,4182.4,4182.3,3.34822885]
[1754833143810,0.002,4182.4,4182.3,3.34822885]
[1754833144006,0.002,4182.4,4182.3,3.93408034]
[1754833144168,3.713,4182.4,4182.3,3.95799062]
[1754833144372,0.002,4182.4,4182.3,3.93408034]
[1754833144601,3.713,4182.4,4182.3,3.95799062]
[1754833144769,0.002,4182.4,4182.3,4.50799062]
[1754833144972,3.713,4182.4,4182.3,3.93408034]
[1754833145295,3.713,4182.4,4182.3,3.43548034]
[1754833145891,3.713,4182.4,4182.3,3.93408034]
[1754833146500,3.713,4182.4,4182.3,4.05328034]
[1754833146816,3.71000001,4182.7,4182.6,2.94085736]
[1754833147115,3.71000001,4182.7,4182.6,4.58793264]
[1754833147411,1e-08,4182.7,4182.6,4.70713264]
[1754833147613,3.712,4182.9,4182.8,2.39074304]
[1754833147813,3.712,4182.9,4182.8,2.84934304]
[1754833148604,0.002,4182.9,4182.8,3.34794304]
[1754833148818,3.712,4182.9,4182.8,4.00273061]
[1754833149519,3.712,4182.9,4182.8,3.50413061]
[1754833149719,3.712,4182.9,4182.8,3.04553061]
[1754833150416,3.712,4182.9,4182.7,2.39075889]
[1754833151720,3.712,4182.9,4182.6,2.39084213]
[1754833151930,0.9249,4182.8,4182.6,2.39084213]
[1754833152087,3.712,4182.9,4182.7,2.3908002]
[1754833152295,4.6369,4182.9,4182.6,2.3908517]
[1754833152629,0.9249,4182.8,4182.7,2.3908002]
[1754833152921,0.9249,4182.8,4182.6,2.39084291]
[1754833153308,0.9249,4182.7,4182.0,2.39117448]
[1754833153692,0.9249,4182.7,4182.3,2.39100685]
[1754833153893,0.9249,4182.7,4182.4,2.39095914]
[1754833154226,0.9249,4182.7,4181.7,0.4986]
[1754833154418,0.9249,4182.7,4182.2,2.39106746]
[1754833154821,0.9249,4182.6,4182.2,2.39106746]
[1754833155016,3.709,4182.5,4182.2,2.39106746]
[1754833155540,3.709,4182.5,4182.3,2.39100619]
[1754833156544,0.9249,4182.4,4181.6,2.39142168]
[1754833156746,0.9249,4182.4,4181.3,0.4986]
[1754833156964,0.9249,4182.3,4181.3,0.33499295]
[1754833157250,3.709,4182.2,4181.5,2.3914861]
[1754833157546,5.741,4182.8,4181.1,3.0]
[1754833157745,3.709,4182.7,4181.8,3.0]
[1754833157919,3.709,4182.6,4182.5,2.39087994]
[1754833158824,3.709,4182.6,4181.5,2.3914863]
[1754833159028,3.709,4182.6,4181.1,3.0]
[1754833159029,4.6416,4182.6,4181.6,0.69834863]
[1754833159343,3.709,4182.6,4182.4,2.51012936]
[1754833160247,0.9326,4182.5,4182.4,0.1192]
[1754833160427,1.0518,4182.5,4182.0,2.39118949]
[1754833160623,0.1192,4182.5,4182.0,2.39118949]
[1754833160945,33.32357465,4182.4,4181.5,2.39145529]
[1754833161111,3.709,4182.6,4181.6,2.39142808]
[1754833161112,0.9326,4182.3,4181.6,2.39142808]
[1754833161318,4.6416,4182.2,4181.6,2.39142808]
[1754833161517,4.6416,4182.2,4181.7,2.3913686]
[1754833161710,0.4486,4182.1,4181.0,0.02491772]
[1754833161915,1.18407527,4182.5,4181.9,2.39125756]
[1754833161916,3.709,4182.0,4181.9,2.39125756]
[1754833162224,0.9326,4182.5,4182.0,2.39116013]
[1754833162547,3.708,4182.4,4182.1,2.39112726]
[1754833162751,3.708,4182.4,4182.3,2.39102885]
[1754833163616,5.741,4182.8,4182.4,2.39093372]
[1754833163829,0.9326,4182.7,4181.9,2.39120356]
[1754833164067,4.6406,4182.7,4182.2,2.39106938]
[1754833164230,4.6406,4182.7,4182.4,2.39092647]
[1754833164435,5.741,4182.8,4182.6,2.39081477]
[1754833164630,5.741,4182.8,4182.7,2.3908002]
[1754833164839,9.449,4182.8,4182.7,2.3908002]
[1754833165329,6.6736,4182.8,4181.5,0.4592]
[1754833165535,6.6736,4182.8,4182.5,2.39091076]
[1754833165768,4.6406,4182.7,4182.6,2.39084569]
[1754833166739,3.708,4182.7,4182.6,2.39084569]
[1754833167646,5.741,4182.8,4182.7,2.3908002]
[1754833168033,9.449,4182.8,4182.7,2.3908002]
[1754833168230,9.449,4182.8,4182.7,2.3400022]
[1754833168649,5.741,4182.8,4182.7,2.3400022]
[1754833168834,9.449,4182.8,4182.7,2.3400022]
[1754833169548,3.708,4182.8,4182.7,2.3400022]
[1754833169867,0.002,4183.4,4183.3,2.39045729]
[1754833170256,3.71,4183.4,4183.3,2.39045729]
[1754833170441,3.71,4183.4,4182.5,0.4592]
[1754833170641,3.71,4183.4,4183.3,2.39045729]
[1754833171666,0.002,4183.4,4183.3,2.39045729]
[1754833172055,3.71,4183.4,4183.3,2.39045729]
[1754833173253,0.002,4183.4,4183.3,2.39045729]
[1754833173459,3.71,4183.4,4183.3,2.50965729]
[1754833173975,4.6426,4183.4,4183.2,2.39050148]
[1754833174141,0.9326,4183.3,4183.1,0.1192]
[1754833174559,3.71,4183.4,4183.2,2.39046665]
[1754833174881,3.71,4183.4,4183.1,2.50976263]
[1754833175043,3.71,4183.4,4183.1,0.1192]
[1754833175248,0.9326,4183.3,4183.1,0.1192]
[1754833175683,0.484,4183.2,4183.1,2.50977158]
[1754833175991,3.71,4183.4,4183.2,2.39051443]
[1754833176277,3.71,4183.4,4183.2,2.39047435]
[1754833176477,4.6426,4183.4,4183.1,0.1192]
[1754833176670,4.6426,4183.4,4183.2,2.3904747]
[1754833177349,0.9326,4183.3,4183.1,0.1192]
[1754833177550,3.90652857,4183.3,4182.7,0.1192]
[1754833177750,0.1192,4183.0,4182.4,0.1192]
[1754833177945,4.6396,4182.9,4182.5,2.39091452]
[1754833178170,4.6396,4182.9,4182.4,0.1192]
[1754833178171,3.707,4182.9,4182.6,2.39085235]
[1754833178356,0.9326,4182.8,4182.4,0.1192]
[1754833178761,0.9326,4182.7,4182.5,2.39090798]
[1754833178963,3.707,4182.6,4182.4,2.51016052]
[1754833179168,4.6396,4182.6,4182.4,0.1192]
[1754833179859,4.1556,4182.6,4182.4,0.1192]
[1754833180062,4.1556,4182.6,4182.4,2.51017169]
[1754833180063,0.484,4182.5,4182.4,2.51017169]
[1754833180463,0.484,4182.5,4182.4,0.1192]
[1754833180797,0.9326,4182.5,4182.3,0.001]
[1754833180952,0.4486,4182.4,4182.3,0.001]
[1754833181158,0.9326,4182.4,4182.3,0.001]
[1754833181697,1.0518,4182.4,4182.3,0.001]
[1754833181899,1.57876943,4182.4,4182.3,0.001]
[1754833183558,11.57876943,4182.4,4182.3,0.001]
[1754833183769,41.57876943,4182.4,4182.3,0.001]
[1754833183966,1.57876943,4182.4,4182.3,0.001]
[1754833185183,33.96974112,4182.4,4182.3,0.001]
[1754833185384,37.67574112,4182.4,4182.3,0.001]
[1754833185698,38.1864805,4182.4,4182.3,0.001]
[1754833186068,41.1864805,4182.4,4182.3,0.001]
[1754833194205,38.79550881,4182.4,4182.3,0.001]
[1754833194405,33.64616943,4182.4,4182.3,0.001]
[1754833194617,37.35216943,4182.4,4182.3,0.001]
[1754833195679,39.74314112,4182.4,4182.3,0.001]
[1754833196108,37.35216943,4182.4,4182.3,0.001]
[1754833196421,33.64616943,4182.4,4182.3,0.001]
[1754833196622,37.35216943,4182.4,4182.3,0.001]
[1754833196919,39.74214112,4182.4,4182.3,0.001]
[1754833197608,5.741,4182.6,4182.3,0.001]
[1754833197908,3.8242,4182.5,4182.3,0.4478]
[1754833198498,3.8242,4182.5,4182.3,2.8388218]
[1754833199321,3.8242,4182.5,4182.3,0.4478]
[1754833199476,3.8242,4182.5,4182.3,2.83882231]
[1754833199677,3.8242,4182.5,4182.3,0.4478]
[1754833200120,3.8242,4182.5,4182.3,0.001]
[1754833200478,0.1192,4182.5,4182.3,0.001]
[1754833200699,3.705,4182.4,4182.3,2.39202885]
[1754833201307,3.705,4182.4,4182.3,2.83882885]
[1754833201515,3.705,4182.4,4182.3,2.39202885]
[1754833201735,38.58822,4182.4,4182.3,0.001]
[1754833201892,39.09851614,4182.4,4182.3,0.001]
[1754833202096,41.48948783,4182.4,4182.3,0.001]
[1754833203004,40.97919169,4182.4,4182.3,0.001]
[1754833203312,41.48953125,4182.4,4182.3,0.001]
[1754833204310,42.03953125,4182.4,4182.3,0.001]
[1754833204613,0.55,4182.2,4180.6,2.39198798]
[1754833204793,2.39159018,4181.4,4180.6,2.39198798]
[1754833205116,3.0,4181.0,4180.5,0.12]
[1754833205283,2.51093621,4181.1,4180.5,0.12]
[1754833205284,3.0,4180.8,4180.7,2.39194393]
[1754833205479,3.704,4180.8,4180.7,2.83874393]
[1754833205684,3.704,4180.8,4180.7,0.8969]
[1754833206111,3.704,4180.8,4180.7,3.28884393]
[1754833206913,6.704,4180.8,4180.7,3.28884393]
[1754833207883,3.704,4180.8,4180.7,3.28884393]
[1754833210731,3.704,4180.8,4180.7,2.83874393]
[1754833211036,3.704,4180.8,4180.5,0.12]
[1754833211212,1.2969,4180.7,4180.1,2.39224505]
[1754833211408,3.704,4180.6,4180.3,2.39216339]
[1754833211604,3.0,4180.9,4180.3,0.4468]
[1754833211805,3.704,4180.8,4180.4,2.83887222]
[1754833212006,3.704,4180.8,4180.5,2.83883299]
[1754833212207,3.704,4180.8,4180.6,0.4468]
[1754833212434,3.704,4180.8,4180.7,2.83874393]
[1754833213226,3.704,4180.8,4180.7,0.8969]
[1754833213425,3.704,4180.8,4180.7,3.28884393]
[1754833213623,3.704,4180.8,4180.7,3.8569293]
[1754833214139,0.18348322,4181.8,4181.7,2.39137193]
[1754833214434,0.18348322,4181.8,4180.7,1.46498537]
[1754833214435,3.704,4181.8,4181.5,2.3914418]
[1754833214636,3.704,4181.8,4181.4,2.39152925]
[1754833214837,3.704,4181.8,4181.7,2.39137193]
[1754833215648,3.4611,4182.5,4182.0,2.39119564]
[1754833215831,3.704,4182.4,4181.8,2.39131451]
[1754833216032,4.21427473,4182.4,4181.8,2.39131451]
[1754833216222,4.21427473,4182.4,4181.7,2.39136714]
[1754833216627,0.9265,4182.3,4181.5,2.39143374]
[1754833216824,2.39143803,4181.6,4180.8,2.39184081]
[1754833217030,3.0,4181.4,4180.6,0.001]
[1754833217231,3.704,4181.3,4180.6,0.001]
[1754833217559,3.704,4181.3,4180.7,2.39194393]
[1754833217737,3.704,4181.3,4180.6,2.39300096]
[1754833217913,3.704,4181.3,4180.7,2.39194393]
[1754833218252,3.704,4181.3,4180.6,0.001]
[1754833218466,0.9418,4181.2,4180.6,0.001]
[1754833218612,0.9418,4181.2,4180.6,2.39298535]
[1754833218814,0.4659,4181.1,4180.6,0.001]
[1754833219059,4.12099,4181.3,4180.9,2.39178886]
[1754833219231,4.12099,4181.3,4180.8,2.391873]
[1754833219551,0.4759,4181.2,4180.8,2.391873]
[1754833219758,0.9418,4181.2,4180.8,2.391873]
[1754833220139,0.9418,4181.2,4180.6,2.39298993]
[1754833220319,0.9418,4181.2,4180.7,2.39194393]
[1754833220956,0.9418,4181.1,4180.7,2.34139108]
[1754833221160,0.1192,4181.0,4180.7,2.34139108]
[1754833221368,3.703,4180.9,4180.7,2.34139108]
[1754833221547,3.703,4180.9,4180.6,2.3929953]
[1754833221740,3.703,4180.9,4180.6,0.001]
[1754833222056,5.1624099,4180.9,4180.6,0.001]
[1754833222738,4.6448,4180.9,4180.6,2.39298553]
[1754833223073,3.703,4180.9,4180.6,0.001]
[1754833223270,3.703,4180.9,4180.7,2.39194393]
[1754833224238,3.703,4180.9,4180.6,2.39299012]
[1754833224437,3.703,4180.9,4180.8,2.39188672]
[1754833225261,3.703,4180.9,4180.7,2.83553001]
[1754833225466,3.703,4180.9,4180.7,2.39193001]
[1754833225667,4.1689,4180.9,4180.6,0.001]
[1754833225865,0.4759,4180.8,4180.6,0.001]
[1754833226064,0.9418,4180.8,4180.6,0.001]
[1754833226765,0.9418,4180.7,4180.6,0.001]
[1754833227872,3.703,4180.9,4180.6,0.001]
[1754833228355,0.9418,4180.8,4180.6,0.001]
[1754833228869,0.9418,4180.7,4180.6,0.001]
[1754833229057,1.061,4180.7,4180.6,0.001]
[1754833230354,1.77657776,4180.7,4180.6,0.001]
[1754833230754,1.31067776,4180.7,4180.6,0.001]
[1754833230949,0.1192,4180.7,4180.6,0.001]
[1754833231747,1.061,4180.7,4180.6,0.001]
[1754833232449,14.061,4180.7,4180.6,0.001]
[1754833232655,34.061,4180.7,4180.6,0.001]
[1754833232857,4.061,4180.7,4180.6,0.001]
[1754833233374,4.8374,4180.7,4180.6,0.001]
[1754833233679,14.8374,4180.7,4180.6,0.001]
[1754833233878,44.8374,4180.7,4180.6,0.001]
[1754833234075,3.8956,4180.7,4180.6,0.001]
[1754833234244,6.8212,4180.7,4180.6,0.001]
[1754833234846,3.0,4180.6,4180.1,0.070769]